bitfinex/quotes_ETHUSD_20250220
["timestamp","ask_amount","ask_price","bid_price","bid_amount"]
[1740080552293,9.811179,2750.8,2750.7,1.98378478]
[1740080553987,9.811179,2750.8,2750.7,0.03482014]
[1740080553988,13.7584138,2750.8,2750.7,0.03482014]
[1740080554212,17.5420138,2750.8,2750.7,0.03482014]
[1740080554409,3.63618,2750.2,2749.6,0.8022]
[1740080554615,8.99618,2750.2,2749.6,4.43908]
[1740080554913,8.99617,2750.2,2749.7,0.03663144]
[1740080555283,5.36,2750.2,2749.7,0.03663144]
[1740080555619,5.36,2750.2,2749.9,3.63645]
[1740080555780,5.36,2750.2,2750.0,0.03601023]
[1740080557008,5.36,2750.2,2749.8,3.63661]
[1740080557314,5.36,2750.2,2749.9,0.03602499]
[1740080557694,5.36,2750.4,2749.9,0.03602499]
[1740080558003,5.36,2750.4,2750.2,3.63609]
[1740080558195,5.36,2750.6,2750.3,0.03596598]
[1740080558391,5.36,2750.6,2750.2,3.636]
[1740080558592,5.36,2750.6,2750.4,3.63579]
[1740080558803,5.36,2750.6,2750.5,0.0358456]
[1740080559881,5.36,2750.6,2750.0,4.39976]
[1740080560128,5.36,2750.6,2750.5,0.0358456]
[1740080560296,5.36,2750.6,2750.0,0.7635]
[1740080560508,0.7836,2751.1,2750.5,0.7993456]
[1740080560714,0.1496,2751.2,2750.6,3.63549]
[1740080560954,0.1496,2751.2,2750.8,3.63522]
[1740080561300,0.1496,2751.2,2750.9,0.03569575]
[1740080561656,0.1496,2751.2,2751.0,0.7635]
[1740080561796,0.1496,2751.2,2751.1,0.03547056]
[1740080563059,0.1496,2751.2,2751.1,3.67037056]
[1740080563511,0.1496,2751.2,2751.1,4.47727462]
[1740080563709,0.1496,2751.2,2751.1,3.67037056]
[1740080563922,0.1496,2751.2,2751.1,4.47467056]
[1740080564832,0.1496,2751.2,2751.1,8.18822829]
[1740080565623,0.1496,2751.2,2751.1,8.15275773]
[1740080565829,0.1496,2751.2,2751.1,9.90695634]
[1740080566015,0.1496,2751.2,2751.1,10.17625113]
[1740080570061,5.36,2752.2,2751.1,9.37195113]
[1740080570213,6.1894,2752.3,2751.8,4.43747]
[1740080570410,6.1313,2752.6,2752.1,3.63349]
[1740080571645,6.1313,2752.6,2752.0,3.63371]
[1740080571848,6.1313,2752.6,2752.0,4.37561153]
[1740080572077,9.76423,2752.6,2752.0,4.37559153]
[1740080572373,9.76423,2752.6,2752.1,3.63357]
[1740080572573,6.1313,2752.6,2752.1,7.26709]
[1740080572780,5.36,2752.6,2752.1,0.84529085]
[1740080572938,5.36,2752.6,2752.3,4.43688]
[1740080573138,0.7713,2753.0,2752.3,0.8036]
[1740080573139,5.36,2753.0,2752.3,0.8036]
[1740080573339,6.1313,2753.2,2752.3,0.8036]
[1740080573581,6.1313,2753.2,2752.8,3.63264]
[1740080573980,6.1313,2753.2,2752.7,3.63268]
[1740080574361,9.76344,2753.2,2752.5,4.37445219]
[1740080574681,3.63233,2753.1,2752.5,4.37445219]
[1740080575063,3.63233,2753.1,2752.3,0.8036]
[1740080575064,7.0370848,2753.1,2752.3,0.8036]
[1740080575384,3.63259,2752.9,2752.3,4.43691]
[1740080575560,4.608833,2753.0,2752.4,3.63317]
[1740080575776,0.976363,2753.0,2752.4,3.63311]
[1740080576199,4.608803,2753.0,2752.4,3.63311]
[1740080577594,0.976363,2753.0,2752.3,4.43685]
[1740080577797,0.976363,2753.0,2752.4,3.6331]
[1740080578372,9.968763,2753.0,2752.4,3.6331]
[1740080578597,9.968763,2753.0,2752.5,3.63305]
[1740080578791,6.336363,2753.0,2752.5,3.63305]
[1740080579199,5.36,2753.0,2752.6,3.63281]
[1740080579588,5.36,2753.0,2752.7,3.63268]
[1740080580407,5.36,2753.0,2752.5,3.90403]
[1740080580579,5.36,2753.0,2752.5,3.90396]
[1740080580771,5.36,2753.0,2752.6,3.63286]
[1740080580972,5.36,2753.0,2752.6,4.386542]
[1740080581505,5.36,2753.0,2752.6,0.753682]
[1740080582313,5.36,2753.0,2752.7,3.63279]
[1740080583308,5.36,2753.0,2752.6,4.386522]
[1740080584005,5.36,2753.0,2752.7,3.63277]
[1740080584202,5.36,2753.0,2752.7,4.4618182]
[1740080584420,6.1313,2753.2,2752.7,4.4618182]
[1740080584585,6.1313,2753.2,2752.8,3.63262]
[1740080584786,6.1313,2753.2,2752.7,4.4618182]
[1740080585399,9.76345,2753.2,2752.7,4.4618182]
[1740080586111,6.1313,2753.2,2752.7,5.18982893]
[1740080586288,6.1313,2753.2,2752.8,0.51898289]
[1740080586907,6.1313,2753.2,2752.8,4.15162289]
[1740080588015,6.1313,2753.2,2752.8,0.51898289]
[1740080588511,6.1313,2753.2,2752.8,4.15163289]
[1740080588805,6.1296,2753.4,2752.9,3.63247]
[1740080588976,0.7771,2753.7,2753.0,0.85949929]
[1740080589177,4.40863,2753.7,2753.1,7.26437]
[1740080589384,4.40863,2753.7,2753.2,3.63213]
[1740080589610,4.40863,2753.7,2753.1,3.63216]
[1740080590476,4.40863,2753.7,2752.8,0.8109]
[1740080590477,4.40863,2753.7,2753.2,3.63213]
[1740080590689,4.40863,2753.7,2753.1,3.63226]
[1740080591025,4.40863,2753.7,2753.2,3.6321]
[1740080591328,4.40863,2753.7,2753.1,3.63219]
[1740080592335,0.7771,2753.7,2753.0,0.73057466]
[1740080592513,0.7771,2753.7,2752.8,3.63258]
[1740080592514,0.7799,2753.3,2752.8,3.63258]
[1740080592716,0.7799,2753.3,2752.6,4.39962]
[1740080593025,4.41195,2753.3,2752.8,3.63266]
[1740080593336,6.1399,2753.3,2752.8,3.63266]
[1740080593496,5.36,2753.3,2753.1,3.63225]
[1740080594496,5.36,2753.3,2752.9,4.789626]
[1740080594714,5.36,2753.3,2753.0,3.6324]
[1740080595132,5.36,2753.3,2753.1,3.63224]
[1740080595435,5.36,2753.3,2753.0,7.26469]
[1740080595631,5.36,2753.3,2753.0,3.63229]
[1740080595814,5.36,2753.3,2753.0,4.37550825]
[1740080596019,5.36,2753.3,2753.1,3.6322]
[1740080596838,5.36,2753.3,2753.0,4.57473825]
[1740080597328,5.36,2753.3,2753.1,3.6322]
[1740080597724,5.36,2753.3,2753.0,4.57473825]
[1740080597901,5.36,2753.3,2753.0,3.63232]
[1740080598100,5.36,2753.3,2753.1,3.63226]
[1740080599443,0.7799,2753.5,2753.1,3.63226]
[1740080600337,0.7799,2753.5,2753.0,3.6324]
[1740080600831,5.36,2753.6,2753.5,3.63174]
[1740080601051,0.7595,2753.8,2753.5,3.63174]
[1740080601253,5.36,2753.9,2753.5,3.63174]
[1740080601649,0.7595,2754.0,2753.7,3.63135]
[1740080601797,0.7595,2754.0,2753.5,4.440834]
[1740080602003,0.7595,2754.0,2753.6,3.6316]
[1740080603942,0.7595,2754.0,2753.6,3.63153]
[1740080604147,0.7595,2754.0,2753.7,3.63138]
[1740080604515,0.7595,2754.0,2753.6,3.63153]
[1740080604831,0.7595,2754.0,2753.7,3.63144]
[1740080605035,0.7595,2754.0,2753.6,3.63158]
[1740080605646,0.7595,2754.0,2753.5,0.809174]
[1740080605853,0.7595,2754.0,2753.9,3.63121]
[1740080606016,5.36,2754.3,2753.9,3.63121]
[1740080606217,0.7611,2754.2,2754.0,3.63101]
[1740080606518,0.8087,2754.4,2754.0,3.63101]
[1740080608051,0.8087,2754.4,2753.8,4.34331093]
[1740080608052,0.8087,2754.4,2753.9,3.6312]
[1740080608647,0.8087,2754.4,2753.8,4.34331093]
[1740080608858,0.8087,2754.4,2754.0,3.63107]
[1740080609156,3.90953849,2754.8,2754.4,3.63048]
[1740080609157,0.8087,2754.8,2754.4,3.63048]
[1740080609319,0.8087,2754.8,2754.5,3.6304]
[1740080609723,3.44143529,2755.0,2754.7,3.63008]
[1740080609957,3.44143529,2755.0,2754.3,4.45232]
[1740080610172,3.44143529,2755.0,2754.5,3.63031]
[1740080610348,7.07121529,2755.0,2754.3,4.897482]
[1740080610533,3.63004,2754.8,2754.3,3.63055]
[1740080610738,0.7999,2754.7,2754.3,3.63064]
[1740080611329,4.43009,2754.7,2754.1,4.45636]
[1740080611840,0.7999,2754.7,2754.1,4.45636]
[1740080612042,0.7999,2754.7,2754.3,3.63066]
[1740080613371,4.43005,2754.7,2754.3,3.63066]
[1740080613548,4.43005,2754.7,2754.2,0.71164465]
[1740080613748,4.43005,2754.7,2754.2,4.34238465]
[1740080614264,0.7999,2754.7,2754.2,0.71164465]
[1740080614493,0.7999,2754.7,2754.3,3.63068]
[1740080614774,0.7999,2754.7,2754.2,0.71164465]
[1740080614977,4.43012,2754.7,2754.2,4.34241465]
[1740080615474,4.43006,2754.7,2754.3,3.63061]
[1740080615685,0.7999,2754.7,2754.4,3.63046]
[1740080616450,0.7999,2754.7,2754.3,3.63061]
[1740080616662,4.43006,2754.7,2754.3,3.63061]
[1740080617673,0.7999,2754.7,2754.2,0.71164465]
[1740080617871,3.63084,2754.2,2753.8,0.27]
[1740080618072,3.63091,2754.2,2753.8,0.27]
[1740080618646,5.36,2754.3,2753.7,4.34856592]
[1740080618845,5.36,2754.3,2753.9,3.6312]
[1740080619977,8.99069,2754.3,2753.9,3.6312]
[1740080620175,8.99069,2754.3,2753.9,4.42917659]
[1740080620176,5.36,2754.3,2753.9,4.42917659]
[1740080620472,5.36,2754.3,2754.0,3.63108]
[1740080620649,5.36,2754.3,2753.9,0.79797659]
[1740080620852,8.99069,2754.3,2753.7,4.34858592]
[1740080621054,0.8256,2754.2,2753.8,3.63134]
[1740080622251,0.8256,2754.2,2753.7,0.71718592]
[1740080622450,0.8256,2754.2,2753.6,3.63158]
[1740080622656,4.45648,2754.2,2753.6,3.63158]
[1740080623071,0.8256,2754.2,2753.7,3.63147]
[1740080623272,5.36,2754.3,2753.9,3.63113]
[1740080624181,5.36,2754.3,2754.0,3.63096]
[1740080624578,5.36,2754.3,2754.1,3.63094]
[1740080624786,5.36,2754.3,2753.8,0.7953]
[1740080624955,5.36,2754.3,2754.0,3.63098]
[1740080625884,5.36,2754.3,2754.2,3.63081]
[1740080627259,5.36,2754.3,2754.2,4.46321]
[1740080628588,5.36,2754.3,2754.2,4.64478311]
[1740080628996,0.7883,2754.9,2754.5,3.63033]
[1740080629193,0.7883,2754.9,2754.4,3.63055]
[1740080629771,0.7883,2754.9,2754.3,3.63063]
[1740080629967,0.7883,2754.9,2754.5,3.63039]
[1740080630183,0.7883,2754.9,2754.4,4.12201031]
[1740080631360,0.7883,2754.9,2754.4,7.26103]
[1740080631659,0.7883,2754.9,2754.4,3.63048]
[1740080631863,4.41827,2754.9,2754.3,3.63067]
[1740080632071,0.7883,2754.9,2754.2,4.73312]
[1740080632409,0.7883,2754.9,2754.4,3.63048]
[1740080632704,0.7883,2754.9,2754.4,7.26093]
[1740080632907,0.7883,2754.9,2754.4,4.466783]
[1740080633491,0.7883,2754.9,2754.5,3.63035]
[1740080634604,6.26250529,2755.0,2754.5,3.63035]
[1740080634810,6.26250529,2755.0,2754.4,4.466863]
[1740080635506,2.63273529,2755.0,2754.4,0.836333]
[1740080635711,6.26250529,2755.0,2754.4,3.63043]
[1740080636014,2.63273529,2755.0,2754.5,3.63038]
[1740080636230,0.8289,2755.1,2754.7,3.63008]
[1740080636932,0.8289,2755.1,2754.8,3.6299]
[1740080637112,0.8289,2755.1,2754.8,4.355898]
[1740080637614,0.8289,2755.1,2754.8,3.6299]
[1740080637812,0.8289,2755.1,2755.0,3.62976]
[1740080638118,5.36,2755.3,2754.9,4.38487]
[1740080638932,5.36,2755.3,2755.0,3.62973]
[1740080639335,5.36,2755.3,2754.9,0.755]
[1740080639484,5.36,2755.3,2755.2,3.6295]
[1740080639679,0.7575,2755.5,2755.2,4.355411]
[1740080639882,0.7575,2755.5,2755.2,3.6295]
[1740080640911,0.7575,2755.5,2755.0,3.89976]
[1740080641117,0.7575,2755.5,2755.0,7.52943]
[1740080641336,0.7575,2755.5,2755.1,3.6296]
[1740080642817,0.7575,2755.5,2755.2,3.62941]
[1740080644085,0.7857,2755.7,2755.6,3.62897]
[1740080644284,0.7857,2756.0,2755.9,3.62857]
[1740080644510,6.1457,2756.3,2755.9,3.62848]
[1740080645015,6.1457,2756.3,2755.9,7.25698]
[1740080645231,6.1457,2756.3,2755.9,0.725698]
[1740080645438,6.1457,2756.3,2755.5,0.7998]
[1740080645635,3.62852,2756.0,2755.5,4.42888]
[1740080645842,0.7861,2755.9,2755.4,3.62916]
[1740080646482,4.41474,2755.9,2755.3,3.62928]
[1740080646816,4.41474,2755.9,2755.5,3.629]
[1740080646817,0.7861,2755.9,2755.5,3.629]
[1740080647021,0.7861,2755.9,2755.4,3.89921]
[1740080647201,0.7861,2755.9,2755.5,3.629]
[1740080647401,0.7861,2755.9,2755.6,3.62894]
[1740080647788,0.7861,2755.9,2755.5,4.60921795]
[1740080647989,4.41469,2755.9,2755.5,0.98020795]
[1740080648190,0.7861,2755.9,2755.5,0.98020795]
[1740080648391,4.40993,2756.1,2755.6,3.62888]
[1740080648591,4.40993,2756.1,2755.5,1.44114375]
[1740080648886,3.62847,2756.0,2755.5,5.07021375]
[1740080650123,4.40993,2756.1,2755.6,3.62893]
[1740080650326,0.7816,2756.1,2755.7,3.62883]
[1740080650616,0.7816,2756.1,2755.7,4.13582737]
[1740080650823,3.62849,2756.0,2755.7,0.50699737]
[1740080651037,3.62865,2755.9,2755.5,1.44114375]
[1740080651224,4.41,2756.1,2755.5,1.44114375]
[1740080651391,3.62845,2756.0,2755.5,5.07018375]
[1740080651587,3.62861,2755.9,2755.5,1.44114375]
[1740080652696,3.62873,2755.8,2755.5,1.44114375]
[1740080652927,3.62861,2755.9,2755.5,1.44114375]
[1740080653131,7.25727,2755.9,2755.5,1.44114375]
[1740080653327,3.62877,2755.8,2755.5,0.4609358]
[1740080653639,3.62877,2755.8,2755.5,0.27]
[1740080653844,3.62903,2755.6,2755.2,1.53684824]
[1740080654047,5.36,2755.8,2755.2,0.73704824]
[1740080654247,5.36,2755.8,2755.0,0.8037]
[1740080654248,3.62926,2755.4,2755.1,0.27]
[1740080654729,0.8313,2755.5,2754.9,1.0103182]
[1740080654902,0.8313,2755.5,2754.9,0.27]
[1740080655103,0.565,2755.4,2754.5,0.783]
[1740080655329,0.7577,2754.8,2754.4,3.90052]
[1740080655519,0.7577,2754.8,2754.4,5.184172]
[1740080655721,6.1177,2755.2,2754.4,1.553652]
[1740080656030,9.74663,2755.7,2755.1,4.41044]
[1740080656328,9.74663,2755.7,2755.2,3.62947]
[1740080656626,13.37558,2755.7,2755.2,3.62947]
[1740080656824,3.62904,2755.6,2755.1,0.7809]
[1740080657134,3.62911,2755.5,2754.8,3.62993]
[1740080657323,9.74664,2755.7,2755.1,3.62962]
[1740080657530,3.62898,2755.6,2755.1,3.62962]
[1740080657917,9.74664,2755.7,2755.1,0.7868]
[1740080658243,6.1177,2755.7,2755.4,3.62912]
[1740080658440,6.1177,2755.7,2755.3,3.62926]
[1740080659331,9.74663,2755.7,2755.1,4.857997]
[1740080659531,9.74663,2755.7,2755.1,4.41634]
[1740080659826,13.37557,2755.7,2755.1,4.41634]
[1740080660522,3.62902,2755.6,2755.1,4.41634]
[1740080661141,9.74662,2755.7,2755.1,0.7868]
[1740080662537,3.62897,2755.6,2755.1,4.41641]
[1740080662842,3.62897,2755.6,2755.2,0.73817527]
[1740080663835,6.1177,2755.7,2755.2,0.73817527]
[1740080664040,3.62897,2755.6,2755.2,0.73817527]
[1740080664330,0.1496,2755.5,2755.2,0.73817527]
[1740080664495,0.1496,2755.5,2755.2,1.2536278]
[1740080664896,0.1496,2755.5,2755.2,4.8830678]
[1740080665299,0.1496,2755.5,2755.2,1.2536278]
[1740080666354,0.1496,2755.5,2755.2,0.73817527]
[1740080667559,3.77874,2755.5,2755.2,0.73817527]
[1740080667727,3.62936,2755.3,2755.2,0.73817527]
[1740080667925,3.62936,2755.3,2755.0,0.27]
[1740080668131,3.62924,2755.4,2755.0,0.27]
[1740080669558,7.25856,2755.4,2754.9,4.63656143]
[1740080669716,0.7995,2755.3,2754.9,1.00668143]
[1740080670122,4.42893,2755.3,2754.9,1.00668143]
[1740080670446,3.62964,2755.1,2754.8,0.27]
[1740080670824,3.62952,2755.2,2754.8,0.27]
[1740080671359,5.36,2755.4,2754.9,0.8297]
[1740080671659,8.98926,2755.4,2754.9,4.45951]
[1740080671860,8.98926,2755.4,2754.9,8.08931]
[1740080672021,8.98926,2755.4,2754.9,5.295431]
[1740080672227,8.98926,2755.4,2754.9,8.925261]
[1740080672426,8.98926,2755.4,2754.9,5.295431]
[1740080672626,8.98926,2755.4,2754.9,8.925251]
[1740080672828,8.98926,2755.4,2754.9,5.295431]
[1740080673457,8.98926,2755.4,2755.0,3.62975]
[1740080674242,8.98926,2755.4,2754.9,1.665631]
[1740080674445,3.62952,2755.2,2754.8,0.27]
[1740080675142,3.62964,2755.1,2754.8,0.27]
[1740080675344,3.62982,2755.0,2754.8,0.27]
[1740080675927,0.7813,2755.2,2754.8,0.27]
[1740080676133,3.62983,2755.0,2754.8,0.27]
[1740080677468,8.98969,2755.1,2754.8,0.27]
[1740080677632,5.36,2755.1,2754.8,0.73253848]
[1740080677838,5.36,2755.1,2754.9,4.41757]
[1740080678038,5.36,2755.1,2754.8,0.27]
[1740080678673,5.36,2755.1,2754.8,3.89995]
[1740080678971,5.36,2755.1,2754.7,4.40579]
[1740080679953,5.36,2755.1,2754.8,3.62991]
[1740080680172,5.36,2755.1,2754.9,4.070391]
[1740080681871,5.36,2755.1,2755.0,3.62976]
[1740080682074,5.36,2755.1,2755.0,4.40186]
[1740080682443,0.1496,2755.5,2755.1,3.62961]
[1740080683068,3.7788,2755.5,2755.0,4.67102213]
[1740080683267,0.1496,2755.5,2755.1,3.62962]
[1740080684179,0.1496,2755.5,2755.0,1.91553344]
[1740080684365,3.77871,2755.5,2755.1,3.62963]
[1740080684707,3.77871,2755.5,2755.0,0.7721]
[1740080684877,3.77871,2755.5,2755.0,4.40176]
[1740080685077,3.77871,2755.5,2755.0,8.03143]
[1740080685555,3.77871,2755.5,2755.0,4.40176]
[1740080685948,3.77871,2755.5,2755.0,5.204932]
[1740080686149,0.1496,2755.5,2755.0,5.205002]
[1740080686347,0.1496,2755.5,2755.1,3.62956]
[1740080688380,0.1496,2755.5,2755.2,0.73710447]
[1740080689287,3.77872,2755.5,2755.2,0.73710447]
[1740080689588,3.62932,2755.4,2755.2,0.73710447]
[1740080689762,0.8088,2755.3,2754.7,0.8074]
[1740080689961,1.50477,2755.5,2754.9,0.74073804]
[1740080689962,0.1496,2755.5,2754.9,0.74073804]
[1740080690167,3.77877,2755.5,2754.9,4.37053804]
[1740080690659,3.62925,2755.4,2754.9,4.37053804]
[1740080690866,3.62925,2755.4,2754.9,0.74073804]
[1740080691072,3.62925,2755.4,2755.0,0.26938266]
[1740080692291,3.62925,2755.4,2754.9,4.37056804]
[1740080692690,0.1496,2755.5,2754.9,4.37056804]
[1740080692856,3.7787,2755.5,2755.0,3.62974]
[1740080693890,3.62924,2755.4,2754.9,0.74073804]
[1740080694089,1.507254,2755.5,2754.9,0.74073804]
[1740080694391,3.62924,2755.4,2754.9,4.37061804]
[1740080695781,0.1496,2755.5,2754.9,4.37061804]
[1740080695958,3.62926,2755.4,2754.9,4.37061804]
[1740080698767,0.1496,2755.5,2754.9,0.74073804]
[1740080699091,0.1496,2755.5,2755.4,4.39853]
[1740080699295,0.1496,2755.5,2755.4,5.20133]
[1740080700377,0.1496,2755.5,2755.4,5.47053272]
[1740080700564,0.1496,2755.5,2755.4,1.84130272]
[1740080700756,0.9422,2755.5,2755.4,0.26920272]
[1740080701463,0.1496,2755.5,2755.4,0.26920272]
[1740080701863,0.1496,2755.5,2755.2,3.62947]
[1740080703697,0.1496,2755.5,2755.1,0.7693]
[1740080703864,3.6294,2755.3,2755.0,0.27]
[1740080704067,3.6294,2755.3,2754.9,0.74073804]
[1740080704619,3.6294,2755.3,2754.8,4.69765]
[1740080704620,3.62954,2755.2,2754.8,0.27]
[1740080704914,3.62954,2755.2,2754.5,4.4281]
[1740080704915,0.8255,2754.9,2754.5,3.6304]
[1740080705118,3.63013,2754.8,2754.2,0.7977]
[1740080705412,3.63025,2754.7,2754.3,0.27]
[1740080705577,0.8255,2754.5,2754.2,0.7435806]
[1740080705979,0.8255,2754.5,2754.2,4.3743706]
[1740080706185,0.8255,2754.5,2754.2,4.64380756]
[1740080706510,0.8255,2754.5,2754.2,1.01301756]
[1740080706712,0.8255,2754.5,2754.2,4.64380756]
[1740080706878,0.8255,2754.5,2754.2,1.01301756]
[1740080707067,0.8255,2754.5,2754.2,0.26943696]
[1740080707264,0.8255,2754.5,2754.1,3.90082]
[1740080707503,0.8255,2754.5,2754.1,0.27]
[1740080707800,4.45599,2754.5,2754.0,0.99105006]
[1740080708399,4.45599,2754.5,2754.0,4.62212006]
[1740080709465,3.63062,2754.4,2754.0,0.99105006]
[1740080709665,4.45599,2754.5,2754.0,4.62212006]
[1740080709889,4.45599,2754.5,2754.0,4.35212006]
[1740080710197,3.63055,2754.4,2754.0,0.72105006]
[1740080710415,3.63076,2754.3,2753.8,3.63127]
[1740080710696,4.44733,2754.2,2753.8,0.73593498]
[1740080711108,8.07822,2754.2,2753.7,3.63147]
[1740080711307,9.80733,2754.2,2753.7,0.74240458]
[1740080711473,3.63095,2754.1,2753.7,0.74240458]
[1740080712602,3.63095,2754.1,2753.4,4.38486]
[1740080712907,3.63117,2754.0,2753.4,8.725136]
[1740080713503,4.44773,2753.9,2753.5,0.70940236]
[1740080713704,3.6316,2753.6,2753.2,0.7531]
[1740080714007,3.6316,2753.6,2753.0,4.6555]
[1740080714207,4.44827,2753.5,2753.0,4.6555]
[1740080714407,4.44827,2753.5,2753.1,0.72671089]
[1740080715174,4.44827,2753.5,2753.0,3.9024]
[1740080715375,3.63188,2753.4,2753.0,0.27]
[1740080715581,3.63209,2753.3,2753.0,0.99649277]
[1740080715995,8.99188,2753.4,2753.0,0.99649277]
[1740080716309,3.63207,2753.3,2753.0,0.27]
[1740080716603,0.8165,2753.2,2752.8,0.71769516]
[1740080716912,0.8165,2753.2,2752.9,3.63252]
[1740080717215,0.8165,2753.2,2752.8,0.71769516]
[1740080717412,4.44864,2753.2,2752.8,0.71769516]
[1740080718205,0.8165,2753.2,2752.8,0.71769516]
[1740080718713,0.8165,2753.2,2752.8,4.35034516]
[1740080719108,0.8165,2753.2,2752.8,0.71769516]
[1740080719315,5.36,2753.3,2752.8,1.17973568]
[1740080719611,5.36,2753.3,2753.0,0.7543]
[1740080719913,5.36,2753.3,2753.0,4.38658]
[1740080720825,5.36,2753.3,2753.1,3.6322]
[1740080721119,6.1597,2753.5,2753.0,0.7543]
[1740080721281,6.1597,2753.5,2753.0,4.38669]
[1740080721685,5.36,2753.5,2753.4,3.63187]
[1740080721879,3.63155,2753.7,2753.1,4.42295]
[1740080722115,0.8222,2753.6,2753.1,4.42295]
[1740080722316,4.45381,2753.6,2753.1,3.63215]
[1740080722486,8.08551,2753.6,2753.0,4.5806789]
[1740080722686,4.45381,2753.6,2753.0,4.5806789]
[1740080722903,4.45381,2753.6,2753.0,3.63237]
[1740080723284,4.45381,2753.6,2752.9,3.63243]
[1740080723509,4.45381,2753.6,2752.9,3.6324]
[1740080723718,4.45381,2753.6,2753.0,3.63233]
[1740080723895,0.8222,2753.6,2753.2,3.63212]
[1740080724315,4.4538,2753.6,2753.0,3.63235]
[1740080724484,0.8222,2753.6,2753.1,3.63226]
[1740080724680,0.814,2754.2,2753.1,0.7572]
[1740080724886,3.63852,2754.1,2753.5,3.63173]
[1740080725219,0.0075,2754.1,2753.6,3.63153]
[1740080725418,6.174,2754.2,2753.9,3.63121]
[1740080725607,0.8215,2754.5,2753.6,4.9002538]
[1740080725935,4.45193,2754.5,2753.9,3.63121]
[1740080726420,0.814,2754.5,2754.0,3.63107]
[1740080726606,0.814,2754.5,2754.1,3.63094]
[1740080726806,0.814,2754.5,2753.7,0.56304]
[1740080726807,0.814,2754.5,2754.3,3.63064]
[1740080726997,0.814,2754.5,2753.7,0.56304]
[1740080727198,0.814,2754.5,2754.0,7.262]
[1740080727398,0.814,2754.5,2754.1,3.63087]
[1740080727718,0.814,2754.5,2754.2,3.63076]
[1740080727908,0.814,2754.5,2754.1,3.63087]
[1740080728286,0.814,2754.5,2754.1,7.99496197]
[1740080728587,0.814,2754.5,2754.1,5.16358817]
[1740080729011,0.814,2754.5,2754.1,1.53273817]
[1740080729213,4.44444,2754.5,2753.9,3.63115]
[1740080729408,4.44444,2754.5,2753.9,3.63113]
[1740080729749,4.44444,2754.5,2754.0,3.63106]
[1740080729891,3.63061,2754.4,2754.1,0.27]
[1740080730091,0.0075,2754.2,2753.6,4.38869]
[1740080730291,0.0075,2754.2,2753.7,3.63137]
[1740080730889,7.26177,2754.2,2753.7,0.72917082]
[1740080731224,0.7857,2754.1,2753.7,0.72917082]
[1740080731621,4.41671,2754.1,2753.7,0.72917082]
[1740080731987,0.7857,2754.1,2753.7,0.72917082]
[1740080732805,0.7857,2754.1,2753.6,0.27]
[1740080733129,3.63134,2753.8,2753.6,0.74247474]
[1740080733292,0.8067,2753.7,2753.3,3.63192]
[1740080734118,0.8067,2753.7,2753.4,0.72861982]
[1740080735324,4.43824,2753.7,2753.1,3.90217]
[1740080735537,3.63161,2753.6,2753.1,3.90217]
[1740080735740,3.63161,2753.6,2753.1,4.733022]
[1740080736032,4.43818,2753.7,2753.1,4.733022]
[1740080736226,4.43818,2753.7,2753.1,3.90217]
[1740080736433,0.8067,2753.7,2753.2,0.73967163]
[1740080736628,3.63164,2753.6,2753.2,0.73967163]
[1740080736991,0.8067,2753.7,2753.2,0.73967163]
[1740080737308,3.63174,2753.5,2753.2,0.73967163]
[1740080738215,0.0075,2753.6,2753.2,0.73967163]
[1740080738433,0.0075,2753.6,2753.2,4.37178163]
[1740080738930,5.3675,2753.6,2753.2,4.37178163]
[1740080739312,5.3675,2753.6,2753.2,0.73967163]
[1740080740535,5.36,2753.6,2753.2,4.37173163]
[1740080740713,5.36,2753.6,2753.4,3.63178]
[1740080740908,5.36,2753.6,2753.5,3.63174]
[1740080741872,0.792,2754.4,2753.5,4.39884]
[1740080742044,0.792,2754.4,2754.0,3.63101]
[1740080742256,5.3675,2754.5,2754.3,3.63065]
[1740080742257,5.36,2754.5,2754.3,3.63065]
[1740080742448,0.792,2754.7,2754.3,3.63061]
[1740080742846,0.7995,2755.1,2754.0,4.1568348]
[1740080743045,0.7995,2755.1,2753.9,3.90119]
[1740080743046,5.36,2755.0,2754.7,3.63015]
[1740080743256,5.36,2755.3,2754.7,7.26011]
[1740080743463,5.36,2755.3,2754.7,7.53011]
[1740080743776,5.36,2755.3,2754.9,3.62989]
[1740080744147,0.8025,2755.4,2755.1,3.62951]
[1740080744357,0.8025,2755.4,2754.9,3.62976]
[1740080744542,0.8025,2755.4,2755.0,3.62975]
[1740080744742,0.8025,2755.4,2754.9,3.62976]
[1740080746041,0.8025,2755.4,2754.7,3.90012]
[1740080746242,3.62961,2755.2,2754.7,0.27]
[1740080746483,3.62979,2755.0,2754.7,0.27]
[1740080747480,4.072821,2755.2,2754.7,0.27]
[1740080747782,9.432821,2755.2,2754.7,0.27]
[1740080748077,8.98961,2755.2,2754.7,3.90008]
[1740080749381,8.98961,2755.2,2754.7,0.27]
[1740080749963,5.36,2755.2,2755.0,3.62963]
[1740080750359,5.36,2755.2,2755.0,7.2593]
[1740080750566,0.8025,2755.4,2755.1,0.72593]
[1740080750882,0.8025,2755.4,2755.0,3.62963]
[1740080751782,0.8025,2755.4,2754.8,3.62994]
[1740080751972,4.43174,2755.4,2754.8,3.62994]
[1740080752180,0.8025,2755.4,2754.7,0.27]
[1740080752351,3.62936,2755.3,2754.8,3.63002]
[1740080752551,3.62936,2755.3,2754.7,4.44561774]
[1740080752552,7.25883,2755.3,2754.7,4.44561774]